bitfinex-derivatives/quotes_ETHF0:USTF0_20251001
["timestamp","ask_amount","ask_price","bid_price","bid_amount"]
[1759341841645,0.7284,4300.1,4300.0,4.29376]
[1759341842747,0.13185187,4300.5,4300.4,0.41832]
[1759341843052,0.34535187,4300.5,4300.4,1.39842]
[1759341843248,0.54955187,4300.5,4300.4,1.08592]
[1759341843454,0.86025187,4300.5,4300.4,1.08592]
[1759341844061,1.27856187,4300.5,4300.4,1.08592]
[1759341844256,0.86025187,4300.5,4300.4,1.08592]
[1759341844558,0.86025187,4300.5,4300.4,1.39842]
[1759341845652,0.52685187,4300.5,4300.4,1.39842]
[1759341846254,0.00265187,4300.5,4300.4,1.39842]
[1759341847657,0.31335187,4300.5,4300.4,1.39842]
[1759341848558,0.86025187,4300.5,4300.4,0.6676]
[1759341848753,1.14675,4300.1,4300.0,3.2078]
[1759341848952,0.7284,4300.1,4300.0,3.4458]
[1759341849146,0.7284,4300.1,4300.0,4.07726]
[1759341849649,1.14675,4300.1,4300.0,3.6589]
[1759341849960,0.7284,4300.1,4300.0,4.07726]
[1759341850163,1.14675,4300.1,4300.0,0.4511]
[1759341851258,1.1468,4299.6,4299.5,3.2078]
[1759341851562,1.1468,4299.6,4299.5,3.4458]
[1759341851758,1.1468,4299.6,4299.5,3.6589]
[1759341852160,1.1468,4299.6,4299.5,3.8754]
[1759341852649,1.1468,4299.6,4299.5,3.4458]
[1759341853356,1.1468,4299.6,4299.5,3.6589]
[1759341853951,0.72908,4299.8,4299.6,0.4184]
[1759341854156,0.72908,4299.8,4299.7,0.9801]
[1759341854356,0.94258,4299.8,4299.7,0.9801]
[1759341855258,0.41835,4300.2,4300.1,0.41835]
[1759341855465,0.72904,4300.3,4300.2,0.7421]
[1759341855665,0.72904,4300.3,4300.2,0.9801]
[1759341855852,0.13185187,4300.5,4300.4,0.41832]
[1759341856057,1.07436187,4300.5,4300.4,0.9801]
[1759341856260,0.65605187,4300.5,4300.4,1.39842]
[1759341856559,0.73166187,4300.5,4300.4,0.9801]
[1759341856757,0.94516187,4300.5,4300.4,0.9801]
[1759341856958,1.07436187,4300.5,4300.4,0.6676]
[1759341857161,1.27856187,4300.5,4300.4,0.6676]
[1759341859066,0.86025187,4300.5,4300.4,0.6676]
[1759341859258,0.52685187,4300.5,4300.4,0.9801]
[1759341859455,0.65605187,4300.5,4300.4,0.9801]
[1759341859663,0.65605187,4300.5,4300.4,0.7421]
[1759341859866,0.65605187,4300.5,4300.4,0.9801]
[1759341860761,0.86025187,4300.5,4300.4,0.4511]
[1759341860960,1.27856187,4300.5,4300.4,0.6676]
[1759341861161,1.27856187,4300.5,4300.4,2.7172]
[1759341862468,0.00265187,4300.5,4300.4,3.13552]
[1759341863067,0.33535187,4300.5,4300.4,3.13552]
[1759341863866,1.31226187,4300.5,4300.4,1.9751]
[1759341866770,1.82612304,4300.5,4300.4,1.9751]
[1759341867575,1.82610474,4300.5,4300.4,1.9751]
[1759341868274,1.31226187,4300.5,4300.4,1.7371]
[1759341868475,1.82612397,4300.5,4300.4,1.7371]
[1759341868767,6.82612397,4300.5,4300.4,1.7371]
[1759341869074,0.7508,4299.6,4299.5,3.6527]
[1759341869267,0.9723,4299.6,4299.5,3.8907]
[1759341869467,0.9723,4299.6,4299.5,4.2031]
[1759341869663,0.3324,4299.6,4299.5,4.2031]
[1759341869869,0.3324,4299.6,4299.5,4.62151]
[1759341870070,1.09836,4300.0,4299.9,0.4449]
[1759341870269,1.09836,4300.0,4299.9,0.6829]
[1759341870566,0.68,4300.0,4299.9,0.6829]
[1759341870767,0.68,4300.0,4299.9,0.9953]
[1759341870969,1.09836,4300.0,4299.9,0.9953]
[1759341871378,1.1855,4299.6,4299.5,3.4279]
[1759341871580,1.1855,4299.6,4299.5,4.2741]
[1759341872172,0.9723,4299.6,4299.5,4.4989]
[1759341872474,1.1855,4299.6,4299.5,4.4989]
[1759341872875,1.1855,4299.6,4299.5,4.054]
[1759341873376,1.1855,4299.6,4299.5,3.4458]
[1759341873977,1.1855,4299.6,4299.5,3.6659]
[1759341874776,1.1855,4299.6,4299.5,3.8907]
[1759341875176,1.1855,4299.6,4299.5,4.2031]
[1759341875372,1.1855,4299.6,4299.5,3.6527]
[1759341875579,1.1855,4299.6,4299.5,3.8907]
[1759341876379,1.1855,4299.6,4299.5,3.6659]
[1759341877177,1.1855,4299.6,4299.5,3.8907]
[1759341877379,1.1855,4299.6,4299.5,0.6829]
[1759341878874,1.1855,4299.6,4299.5,0.9953]
[1759341879082,0.75077,4299.9,4299.8,0.4449]
[1759341879384,0.97222,4300.4,4300.3,0.7573]
[1759341879587,0.97222,4300.4,4300.3,0.9953]
[1759341879877,0.5539,4300.4,4300.3,0.9953]
[1759341880077,0.00265187,4300.5,4300.4,1.17562]
[1759341880673,0.00265187,4300.5,4300.4,6.17562]
[1759341880877,0.55655187,4300.5,4300.4,0.7573]
[1759341881080,0.89585187,4300.5,4300.4,0.9953]
[1759341881284,0.33505187,4300.5,4300.4,0.9953]
[1759341881679,0.68265187,4300.5,4300.4,0.9953]
[1759341881879,0.89585187,4300.5,4300.4,0.6829]
[1759341882877,0.89585187,4300.5,4300.4,0.9953]
[1759341883281,0.00265187,4300.5,4300.4,0.9953]
[1759341884183,0.89585187,4300.5,4300.4,0.4449]
[1759341884374,0.89585187,4300.5,4300.4,0.6829]
[1759341884785,0.89585187,4300.5,4300.4,0.4581]
[1759341885586,1.31416187,4300.5,4300.4,0.4581]
[1759341886882,1.31416187,4300.5,4300.4,0.6829]
[1759341887391,0.33505187,4300.5,4300.4,1.41362]
[1759341887582,0.00265187,4300.5,4300.4,1.41362]
[1759341887783,0.42096187,4300.5,4300.4,0.9953]
[1759341888183,0.75336187,4300.5,4300.4,0.9953]
[1759341888485,0.33505187,4300.5,4300.4,1.41362]
[1759341889381,0.00265187,4300.5,4300.4,1.41362]
[1759341889989,0.75336187,4300.5,4300.4,1.41362]
[1759341890184,0.00265187,4300.5,4300.4,1.41362]
[1759341891187,0.42096187,4300.5,4300.4,1.41362]
[1759341892592,1.31416187,4300.5,4300.4,0.6829]
[1759341893285,1.31416187,4300.5,4300.4,0.2201]
[1759341893487,1.17835,4300.1,4300.0,3.2078]
[1759341893693,1.17835,4300.1,4300.0,3.6704]
[1759341894631,1.17835,4300.1,4300.0,0.2246]
[1759341894791,1.17835,4300.1,4300.0,0.4626]
[1759341899091,1.17835,4300.1,4300.0,4.2041]
[1759341899693,1.17835,4300.1,4300.0,3.9661]
[1759341899894,1.17835,4300.1,4300.0,3.8962]
[1759341902688,1.17835,4300.1,4300.0,0.4626]
[1759341902889,0.76,4300.1,4300.0,0.6884]
[1759341903196,0.76,4300.1,4300.0,3.8962]
[1759341903889,0.76,4300.1,4300.0,4.2041]
[1759341904398,0.76,4300.1,4300.0,3.8962]
[1759341904588,0.76,4300.1,4300.0,3.4324]
[1759341904896,0.76,4300.1,4300.0,3.4458]
[1759341908995,0.76,4300.1,4300.0,3.6704]
[1759341909196,0.76,4300.1,4300.0,3.8962]
[1759341909990,1.17835,4300.1,4300.0,3.8962]
[1759341911395,1.17835,4300.1,4300.0,4.2041]
[1759341911599,0.326,4300.4,4300.1,0.41835]
[1759341911798,0.74432,4300.4,4300.3,0.7583]
[1759341912593,0.95402,4300.4,4300.3,0.7583]
[1759341912800,1.69273076,4300.4,4300.3,0.4504]
[1759341913699,1.17833,4300.3,4300.2,0.238]
[1759341913903,1.69274076,4300.3,4300.2,0.4626]
[1759341914105,1.17833,4300.3,4300.2,0.6884]
[1759341915398,1.69288594,4300.3,4300.2,0.4504]
[1759341915703,1.69288594,4300.3,4300.2,0.6884]
[1759341917803,1.69288594,4300.3,4300.2,0.4626]
[1759341919114,1.69288594,4300.3,4300.2,0.2246]
[1759341919299,1.17835,4300.1,4300.0,3.2078]
[1759341919494,1.17835,4300.1,4300.0,0.238]
[1759341919700,0.41837,4299.9,4299.8,0.6066]
[1759341919900,1.17837,4299.9,4299.8,0.8446]
[1759341920899,1.17837,4299.9,4299.8,1.0501]
[1759341922105,1.17837,4299.9,4299.8,0.8446]
[1759341923096,1.17837,4299.9,4299.8,0.6066]
[1759341923301,1.17837,4299.9,4299.8,1.0491]
[1759341924808,1.17837,4299.9,4299.8,1.2552]
[1759341925508,1.17837,4299.9,4299.8,1.5632]
[1759341925806,0.3387,4300.2,4299.8,1.5632]
[1759341926007,0.41833,4300.3,4300.2,0.63804]
[1759341926198,0.42096187,4300.5,4300.4,0.7338]
[1759341926603,0.51785438,4300.5,4300.4,1.15212]
[1759341926802,0.00265187,4300.5,4300.4,1.15212]
[1759341927503,0.00265187,4300.5,4300.4,0.7338]
[1759341927808,0.34135187,4300.5,4300.4,0.7338]
[1759341928009,0.34135187,4300.5,4300.4,1.15212]
[1759341928415,4.86307201,4302.3,4301.4,0.7338]
[1759341928602,0.51494135,4301.9,4301.8,3.9416]
[1759341928802,0.1336,4302.5,4302.4,0.2197]
[1759341929002,0.5585,4302.5,4302.4,0.7647]
[1759341929211,1.49167436,4302.5,4302.4,0.7647]
[1759341929407,1.49436729,4302.5,4302.4,0.76641942]
[1759341929809,1.49436729,4302.5,4302.4,0.97251942]
[1759341930009,1.36076729,4302.5,4302.4,0.97251942]
[1759341930209,0.84571293,4302.5,4302.4,0.97251942]
[1759341930412,1.18441293,4302.5,4302.4,0.97251942]
[1759341930811,0.20839293,4302.5,4302.4,0.97251942]
[1759341931213,0.76629293,4302.5,4302.4,0.97251942]
[1759341935310,0.00269293,4302.5,4302.4,0.97251942]
[1759341935910,0.022,4302.9,4302.8,0.7338]
[1759341936105,0.022,4302.9,4302.8,4.59669]
[1759341936706,0.75668,4303.9,4303.8,0.2197]
[1759341936908,0.76589662,4303.9,4303.8,0.9708]
[1759341937112,0.00229662,4303.9,4303.8,4.1786]
[1759341937311,0.5444,4304.4,4304.3,0.7338]
[1759341937511,0.5444,4304.4,4304.3,0.9708]
[1759341937711,0.7636,4304.4,4304.3,0.9708]
[1759341938111,0.3387,4305.3,4304.5,0.1343]
[1759341938316,0.41782,4305.6,4305.2,0.7338]
[1759341938512,0.0019574,4305.3,4305.2,0.7338]
[1759341938718,0.0019574,4305.3,4305.2,0.9708]
[1759341938920,0.7655574,4305.3,4305.2,0.9708]
[1759341939119,1.18146,4305.2,4305.1,3.2078]
[1759341939319,1.18151,4304.6,4304.5,0.7338]
[1759341939516,1.18151,4304.6,4304.5,0.9708]
[1759341940019,0.2057,4303.8,4303.7,3.2078]
[1759341940217,0.7636,4303.8,4303.7,4.1786]
[1759341940417,0.7636,4303.8,4303.7,3.9416]
[1759341940721,0.7636,4303.8,4303.7,4.1786]
[1759341942013,0.7636,4303.8,4303.7,3.2078]
[1759341942218,0.7636,4303.8,4303.7,3.4448]
[1759341943212,5.7636,4303.8,4303.7,3.2078]
[1759341943415,1.1816,4303.7,4303.6,0.6046]
[1759341946822,1.1816,4303.7,4303.6,1.3384]
[1759341947827,1.1816,4303.7,4303.6,0.8243]
[1759341948127,1.1816,4303.7,4303.6,0.6046]
[1759341948732,6.1816,4303.7,4303.6,0.6046]
[1759341949032,1.1817,4302.7,4302.6,3.4275]
[1759341949239,1.1817,4302.7,4302.6,3.9065]
[1759341949441,1.1817,4302.7,4302.6,4.1126]
[1759341949939,0.843,4302.7,4302.6,4.1126]
[1759341951340,1.1817,4302.7,4302.6,4.1126]
[1759341951942,0.3387,4303.1,4302.6,4.1126]
[1759341952144,0.2057,4302.9,4302.8,0.7338]
[1759341952343,0.7636,4303.5,4303.4,0.7338]
[1759341952544,0.62372,4303.5,4303.4,0.9708]
[1759341952839,0.62372,4303.5,4303.1,3.2078]
[1759341952840,1.18165,4303.2,4303.1,3.2078]
[1759341953040,1.18165,4303.2,4303.1,4.1786]
[1759341955340,1.18165,4303.2,4303.1,3.8706]
[1759341955743,1.17867,4303.5,4302.7,0.7694]
[1759341955744,1.16729,4302.8,4302.7,0.7694]
[1759341956045,1.16729,4302.8,4302.7,1.0064]
[1759341956344,1.16729,4302.8,4302.7,0.2258]
[1759341956540,1.16729,4302.8,4302.7,0.7871]
[1759341956844,1.16729,4302.8,4302.7,0.237]
[1759341957040,1.1673,4302.7,4302.6,3.2078]
[1759341957545,6.66694491,4302.7,4302.6,3.2078]
[1759341958339,6.1673,4302.7,4302.6,3.2078]
[1759341958533,6.1673,4302.7,4302.6,3.4336]
[1759341958744,6.1673,4302.7,4302.6,3.9772]
[1759341958941,1.1673,4302.7,4302.6,4.2142]
[1759341959245,0.6305,4302.7,4302.6,4.2142]
[1759341960044,0.4181,4302.7,4302.6,4.2142]
[1759341960246,0.4181,4302.7,4302.6,4.63231]
[1759341960447,0.4181,4302.7,4302.6,4.2142]
[1759341960746,3.83825,4303.2,4303.1,0.7694]
[1759341960950,4.12603787,4303.2,4303.1,1.0064]
[1759341961433,1.13063787,4303.2,4303.1,1.0064]
[1759341961634,1.6673666,4303.2,4303.1,1.0064]
[1759341962038,1.16725,4303.2,4303.1,0.7694]
[1759341962242,1.66736469,4303.2,4303.1,1.0064]
[1759341962740,1.16729,4302.8,4302.7,0.7694]
[1759341962940,1.16729,4302.8,4302.7,1.0064]
[1759341963243,0.41809,4302.8,4302.7,1.0064]
[1759341964442,0.63049,4302.8,4302.7,1.0064]
[1759341964639,1.16729,4302.8,4302.7,0.4451]
[1759341964844,1.16729,4302.8,4302.7,1.0064]
[1759341965944,0.85129,4302.8,4302.7,1.0064]
[1759341966140,0.63049,4302.8,4302.7,1.0064]
[1759341966345,0.41809,4302.8,4302.7,1.0064]
[1759341968340,0.41808,4302.9,4302.7,0.6821]
[1759341968642,1.125,4303.2,4303.0,0.99597]
[1759341968643,0.41806,4303.1,4303.0,0.99597]
[1759341968848,0.41806,4303.1,4303.0,1.23297]
[1759341969040,0.41806,4303.1,4303.0,1.55727]
[1759341969239,1.1307,4303.6,4303.5,0.3586]
[1759341969439,2.04979702,4303.6,4303.5,1.1392]
[1759341969641,0.41801,4303.6,4303.5,1.1392]
[1759341969938,0.63041,4303.6,4303.5,1.1392]
[1759341970144,1.66852169,4303.6,4303.5,1.0064]
[1759341970339,0.91932169,4303.6,4303.5,1.0064]
[1759341970542,0.41799,4303.9,4303.8,0.4451]
[1759341970745,0.41799,4303.9,4303.8,1.0064]
[1759341971241,0.91955441,4303.9,4303.8,1.0064]
[1759341971447,0.316,4304.3,4303.8,1.42439]
[1759341971739,0.63038,4304.0,4303.9,0.7694]
[1759341971943,1.13188277,4304.0,4303.9,1.0064]
[1759341972340,0.41796,4304.1,4304.0,0.5779]
[1759341972546,0.41796,4304.1,4304.0,0.9022]
[1759341972737,0.91952541,4304.1,4304.0,0.9022]
[1759341973445,2.3518,4304.3,4304.1,0.3243]
[1759341973642,0.91949784,4304.2,4304.1,0.7694]
[1759341973950,1.16716,4304.2,4304.1,1.0064]
[1759341974451,1.16719,4303.8,4303.7,3.7579]
[1759341974645,1.16719,4303.8,4303.7,3.6706]
[1759341974848,1.16719,4303.8,4303.7,3.9949]
[1759341975150,1.16719,4303.8,4303.7,4.2142]
[1759341975348,0.41799,4303.9,4303.7,4.2142]
[1759341975650,0.63039,4303.9,4303.8,0.7694]
[1759341976547,1.16719,4303.9,4303.8,0.7694]
[1759341978052,0.85119,4303.9,4303.8,0.7694]
[1759341978252,0.63039,4303.9,4303.8,0.7694]
[1759341978843,0.41797,4304.0,4303.9,0.3243]
[1759341979054,2.76974,4304.3,4304.2,0.7694]
[1759341979256,1.59464,4304.3,4304.2,1.0064]
[1759341979453,0.41794,4304.3,4304.2,1.0064]
[1759341980960,1.1817,4304.8,4304.7,0.4262]
[1759341981256,1.68241262,4304.8,4304.7,0.237]
[1759341982153,0.41794,4304.3,4304.2,0.3231]
[1759341982352,0.64114,4304.3,4304.2,0.9643]
[1759341982554,0.97404,4304.3,4304.2,0.9643]
[1759341982946,1.18174,4304.3,4304.2,0.9643]
[1759341984455,1.19204,4304.3,4304.2,0.7493]
[1759341984654,1.19204,4304.3,4304.2,0.9863]
[1759341984655,0.64114,4304.3,4304.2,0.9863]
[1759341984860,0.41794,4304.3,4304.2,0.9863]
[1759341985355,0.97374,4304.3,4304.2,0.9863]
[1759341985555,1.19174,4304.3,4304.2,0.9863]
[1759341985860,0.63803,4304.5,4304.4,0.7733]
[1759341986061,0.41794,4304.3,4304.2,3.2078]
[1759341986256,1.19174,4304.3,4304.2,3.4164]
[1759341986561,1.19174,4304.3,4304.2,0.237]
[1759341991060,0.41799,4303.8,4303.7,3.4164]
[1759341991263,1.19179,4303.8,4303.7,3.6534]
[1759341991660,1.19179,4303.8,4303.7,3.4164]
[1759341991864,0.7738,4303.8,4303.7,3.8786]
[1759341992062,1.32242,4304.5,4304.4,0.2086]
[1759341992268,1.82286187,4304.5,4304.4,0.237]
[1759341993369,1.82286187,4304.5,4304.4,0.4456]
[1759341993571,1.82286187,4304.5,4304.4,0.7851]
[1759341993773,1.82286187,4304.5,4304.4,1.0103]
[1759341994072,1.19172,4304.5,4304.4,1.0103]
[1759341995270,1.6927003,4304.5,4304.4,1.0103]
[1759341996074,1.8234003,4304.5,4304.4,1.0103]
[1759341996275,1.8234003,4304.5,4304.4,0.4456]
[1759341996872,0.4381,4304.2,4304.1,0.5481]
[1759341997069,1.19175,4304.2,4304.1,0.4456]
[1759341997267,1.69281888,4304.2,4304.1,0.4456]
[1759341997463,1.19179,4303.8,4303.7,4.3991]
[1759341997668,0.85609,4303.8,4303.7,4.6361]
[1759341997880,0.63808,4304.0,4303.9,1.19128]
[1759341998175,0.41798,4304.0,4303.9,0.7733]
[1759341998771,0.97378,4304.0,4303.9,0.7733]
[1759341999174,0.97378,4304.0,4303.9,0.5481]
[1759341999175,1.19178,4304.0,4303.9,0.5481]
[1759341999573,1.19178,4304.0,4303.9,0.7851]
[1759342000272,1.32248,4304.0,4303.9,1.0103]
[1759342000673,1.32248,4304.0,4303.9,0.7733]
[1759342000872,1.32248,4304.0,4303.9,1.0103]
[1759342001576,1.82428663,4304.0,4303.9,1.0103]
[1759342002475,1.69358663,4304.0,4303.9,1.0103]
[1759342002677,0.63808,4304.0,4303.9,1.0103]
[1759342003276,1.13988024,4304.0,4303.9,1.0103]
[1759342003881,1.69358024,4304.0,4303.9,1.0103]
[1759342004083,1.13988024,4304.0,4303.9,1.0103]
[1759342004283,0.41798,4304.0,4303.9,1.42828]
[1759342004584,0.41798,4304.0,4303.9,1.0103]
[1759342005077,0.63808,4304.0,4303.9,1.0103]
[1759342005582,0.41798,4304.0,4303.9,1.42828]
[1759342005776,0.63808,4304.0,4303.9,1.0103]
[1759342006381,0.2201,4304.0,4303.9,1.0103]
[1759342006683,0.2201,4304.0,4303.9,1.42828]
[1759342006982,0.63807,4304.0,4303.9,1.42828]
[1759342007386,0.97374,4304.3,4304.2,0.7733]
[1759342007582,1.47558758,4304.3,4304.2,1.0103]
[1759342007782,1.69358758,4304.3,4304.2,1.0103]
[1759342008983,0.72194758,4304.3,4304.2,1.42825]
[1759342009181,0.41794,4304.3,4304.2,4.63605]
[1759342010178,1.19169,4304.9,4304.8,0.5481]
[1759342010382,1.69309854,4304.9,4304.8,0.4456]
[1759342010985,1.69309854,4304.9,4304.8,0.7851]
[1759342011580,1.69309854,4304.9,4304.8,1.0103]
[1759342012682,1.69309854,4304.9,4304.8,0.6708]
[1759342012984,1.69309854,4304.9,4304.8,0.237]
[1759342013190,1.19171,4304.6,4304.5,0.2086]
[1759342013483,1.19171,4304.6,4304.5,0.237]
[1759342013689,0.7657,4304.3,4304.2,3.7532]
[1759342013890,0.7657,4304.3,4304.2,4.61285]
[1759342014278,0.2183,4304.3,4304.2,4.61285]
[1759342014487,0.2183,4304.5,4304.4,0.83163]
[1759342014989,0.2183,4304.5,4304.4,1.16803]
[1759342015283,0.41791,4304.7,4304.5,0.41792]
[1759342015488,0.41791,4304.7,4304.6,1.40501]
[1759342015489,0.96051,4304.7,4304.6,1.40501]
[1759342015690,0.96049,4304.9,4304.8,0.7501]
[1759342016292,1.18359,4304.9,4304.8,0.7501]
[1759342016789,1.18359,4304.9,4304.8,0.209]
[1759342016991,2.2985,4305.1,4305.0,0.5404]
[1759342017184,2.2985,4305.1,4305.0,0.7774]
[1759342017387,2.2985,4305.1,4305.0,5.7774]
[1759342017586,2.2985,4305.1,4305.0,6.1138]
[1759342018282,2.10732494,4305.1,4305.0,6.1138]
[1759342018488,1.2701,4305.1,4305.0,46.9138]
[1759342018993,1.2701,4305.1,4305.0,1.1138]
[1759342020782,1.2701,4305.1,4305.0,0.8768]
[1759342020988,2.0358,4305.1,4305.0,1.1138]
[1759342021587,2.0358,4305.1,4305.0,0.7501]
[1759342021787,2.0358,4305.1,4305.0,0.209]
[1759342022092,2.0358,4305.1,4305.0,0.446]
[1759342022395,2.0358,4305.1,4305.0,0.9871]
[1759342022592,2.0358,4305.1,4305.0,1.1138]
[1759342022793,2.0358,4305.1,4305.0,0.9871]
[1759342023292,2.0358,4305.1,4305.0,0.6507]
[1759342023788,0.7657,4304.9,4304.8,3.4168]
[1759342023995,1.2701,4305.1,4305.0,0.8768]
[1759342024392,2.45367,4305.1,4305.0,0.7501]
[1759342026000,2.0358,4305.1,4305.0,0.9871]
[1759342026195,2.0358,4305.1,4305.0,1.1138]
[1759342026398,1.2701,4305.1,4305.0,1.29468]
[1759342026703,1.2701,4305.1,4305.0,6.53168]
[1759342029107,0.0019574,4305.3,4305.2,1.16796]
[1759342029407,0.0019574,4305.3,4305.2,1.40496]
[1759342033304,0.9768,4305.5,4305.4,1.16794]
[1759342033504,0.9768,4305.5,4305.4,4.61274]
[1759342033699,0.9758,4305.7,4305.6,0.7501]
[1759342033910,1.5184,4305.7,4305.6,1.40492]
[1759342034311,1.5213326,4305.7,4305.6,1.40692443]
[1759342034507,0.9787326,4305.7,4305.6,1.40692443]
[1759342035709,0.8198,4306.1,4306.0,0.95818]
[1759342035905,0.8198,4306.1,4306.0,4.73938]
[1759342036107,0.8198,4306.1,4306.0,4.92061179]
[1759342036410,0.78249787,4306.1,4306.0,4.73938]
[1759342036608,0.2183,4306.8,4306.7,0.7501]
[1759342036807,0.7657,4306.8,4306.7,0.9871]
[1759342037005,0.76840031,4306.8,4306.7,0.9871]
[1759342037211,0.0112968,4308.7,4307.9,0.41759]
[1759342037511,0.7657,4307.9,4307.8,3.2078]
[1759342037806,0.7657,4307.4,4307.3,3.2078]
[1759342038007,0.7657,4307.4,4307.3,0.237]
[1759342038208,0.7657,4306.9,4306.8,3.6215]
[1759342038413,0.7657,4306.9,4306.8,4.1969]
[1759342039910,0.7657,4306.9,4306.8,3.2078]
[1759342040109,0.7657,4306.9,4306.8,3.4468]
[1759342040314,0.7657,4306.9,4306.8,3.6558]
[1759342040517,1.18339,4306.9,4306.8,3.6558]
[1759342040713,1.7237,4307.3,4306.8,3.9427]
[1759342040919,0.8807,4307.0,4306.9,0.24]
[1759342041621,0.7481,4306.9,4306.8,3.2078]
[1759342041827,0.7481,4306.9,4306.8,3.4478]
[1759342043723,0.7481,4306.9,4306.8,3.6609]
[1759342044024,0.7481,4306.9,4306.8,4.1969]
[1759342044217,0.7481,4306.9,4306.8,3.9569]
[1759342044420,0.7481,4306.9,4306.8,4.1969]
[1759342045120,0.4386,4306.9,4306.8,4.1969]
[1759342045316,0.7698,4306.9,4306.8,4.1969]
[1759342046122,1.7237,4307.3,4307.2,0.3206]
[1759342046327,1.7237,4307.3,4307.2,0.9994]
[1759342046522,0.00287409,4307.4,4307.3,0.3206]
[1759342046724,0.00287409,4307.4,4307.3,0.7594]
[1759342046923,0.41757,4308.2,4307.9,0.7594]
[1759342047225,0.95287,4308.2,4308.1,0.7594]
[1759342047424,0.41758,4308.0,4307.9,3.2078]
[1759342047730,0.7426,4307.4,4307.3,3.4312]
[1759342047929,0.74450783,4307.4,4307.3,3.9918]
[1759342048119,0.41330783,4307.4,4307.3,4.2072]
[1759342048324,0.74450783,4307.4,4307.3,3.2078]
[1759342048826,0.74450783,4307.4,4307.3,3.4478]
[1759342049325,0.33310783,4307.4,4307.3,4.2072]
[1759342049631,0.00190783,4307.4,4307.3,4.2072]
[1759342049822,0.20600783,4307.4,4307.3,4.2072]
[1759342050026,0.00190783,4307.4,4307.3,4.2072]
[1759342051330,0.00190783,4307.4,4307.3,9.2072]
[1759342051528,0.00190783,4307.4,4307.3,4.2072]
[1759342051717,0.00190783,4307.4,4307.3,45.0072]
[1759342051919,0.00190783,4307.4,4307.3,44.7672]
[1759342052119,0.74450783,4307.4,4307.3,3.9672]
[1759342052327,0.00190783,4307.4,4307.3,4.2072]
[1759342052627,0.74450783,4307.4,4307.3,3.9672]
[1759342052924,1.16032,4306.6,4306.5,3.2078]
[1759342053127,1.16032,4306.6,4306.5,3.6712]
[1759342053332,1.16032,4306.6,4306.5,3.9918]
[1759342053720,0.7426,4306.6,4306.5,3.9918]
[1759342053923,0.4114,4306.6,4306.5,4.2072]
[1759342054521,0.3312,4306.9,4306.5,4.3381]
[1759342054724,0.62179,4307.0,4306.9,0.7594]
[1759342054925,0.62179,4307.0,4306.9,0.9994]
[1759342055123,1.16029,4307.0,4306.9,0.9994]
[1759342055525,0.62179,4307.0,4306.9,0.9994]
[1759342055726,0.95621,4306.7,4306.6,0.544]
[1759342056027,1.16031,4306.7,4306.6,0.9994]
[1759342056233,0.82911,4306.7,4306.6,0.9994]
[1759342057031,1.16031,4306.7,4306.6,0.9994]
[1759342057234,1.16031,4306.7,4306.6,0.7594]
[1759342057434,1.16031,4306.7,4306.6,0.9994]
[1759342058132,0.2041,4306.7,4306.6,0.9994]
[1759342058429,0.3312,4307.1,4306.6,0.9994]
[1759342058430,0.4177,4306.8,4306.6,0.9994]
[1759342058641,0.4177,4306.8,4306.7,0.7594]
[1759342060133,0.3312,4307.1,4306.8,0.3206]
[1759342060334,0.62177,4307.1,4307.0,0.8903]
[1759342060535,1.16027,4307.1,4307.0,1.1303]
[1759342060729,1.16027,4307.1,4307.0,0.9994]
[1759342061128,0.00190783,4307.4,4307.1,0.3206]
[1759342061333,0.00190783,4307.4,4307.3,0.7594]
[1759342061528,0.41766,4307.2,4307.0,3.3387]
[1759342061742,0.41766,4307.2,4307.0,3.2078]
[1759342061743,0.7426,4307.1,4307.0,3.2078]
[1759342062136,0.7426,4307.1,4307.0,3.4478]
[1759342062941,0.7426,4307.1,4307.0,0.24]
[1759342063645,0.7426,4307.1,4307.0,0.4634]
[1759342063845,0.7426,4307.1,4307.0,0.24]
[1759342064145,0.4177,4306.8,4306.7,0.3815]
[1759342064343,1.1603,4306.8,4306.7,0.8449]
[1759342064738,0.7426,4306.8,4306.7,0.8449]
[1759342065136,0.7426,4306.8,4306.7,1.0603]
[1759342066339,1.1603,4306.8,4306.7,0.8203]
[1759342066535,0.8291,4306.8,4306.7,1.0603]
[1759342067233,0.3312,4307.3,4306.7,1.0603]
[1759342067439,1.16025,4307.3,4307.2,0.544]
[1759342067647,1.16025,4307.3,4307.2,0.784]
[1759342068645,0.62175,4307.3,4307.2,0.9994]
[1759342069043,0.95295,4307.3,4307.2,0.9994]
[1759342069244,1.16025,4307.3,4307.2,0.9994]
[1759342069445,1.16025,4307.3,4307.2,0.7594]
[1759342069644,1.16025,4307.3,4307.2,0.9994]
[1759342070849,0.62175,4307.3,4307.2,0.9994]
[1759342071149,0.95295,4307.3,4307.2,0.9994]
[1759342071651,1.16025,4307.3,4307.2,0.9994]
[1759342075752,1.16025,4307.3,4307.2,0.7594]
[1759342075947,1.58265,4307.3,4306.7,0.0609]
[1759342076158,1.1651,4306.8,4306.7,0.0609]
[1759342076349,1.1651,4306.8,4306.7,0.8342]
[1759342078752,1.1651,4306.8,4306.7,0.2999]
[1759342078949,1.1651,4306.8,4306.7,0.0609]
[1759342079157,1.1651,4306.8,4306.7,0.2999]
[1759342080059,1.1651,4306.8,4306.7,0.8342]
[1759342080353,0.4177,4306.8,4306.7,1.0471]
[1759342080749,0.6235,4306.8,4306.7,1.0471]
[1759342081054,1.1651,4306.8,4306.7,1.0471]
[1759342081653,1.1651,4306.8,4306.7,0.8081]
[1759342081847,1.1651,4306.8,4306.7,1.0471]